bitfinex-derivatives/quotes_SOLF0:USTF0_20250820
["timestamp","ask_amount","ask_price","bid_price","bid_amount"]
[1755658178858,138.12,181.32,181.26,3.08]
[1755658179455,138.12,181.32,181.28,5.5164]
[1755658179649,138.12,181.32,181.29,3.08]
[1755658180153,370.84,181.38,181.22,199.88133988]
[1755658180362,3.1,181.34,181.25,3.08]
[1755658180656,3.1,181.34,181.22,198.41851146]
[1755658180852,2.43663435,181.36,181.22,195.33851146]
[1755658180853,5.5167,181.27,181.22,195.33851146]
[1755658181056,141.24,181.3,181.23,3.08]
[1755658181458,138.14,181.3,181.23,3.08]
[1755658181656,3.1,181.29,181.19,3.08]
[1755658182060,5.5179,181.24,181.18,5.5194]
[1755658182357,3.1,181.26,181.18,3.08]
[1755658182751,5.5182,181.23,181.18,3.08]
[1755658183055,3.1,181.26,181.13,6.97946277]
[1755658183255,3.1,181.26,181.15,5.5203]
[1755658184356,3.1,181.26,181.16,5.5201]
[1755658185060,3.1,181.26,181.14,3.08]
[1755658185361,3.1,181.26,181.16,5.52]
[1755658186156,3.1,181.26,181.17,5.5197]
[1755658186359,3.1,181.26,181.17,3.08]
[1755658186660,138.08,181.25,181.17,3.08]
[1755658187854,138.08,181.25,181.18,5.5194]
[1755658189154,3.1,181.26,181.18,5.5194]
[1755658190260,370.78,181.32,181.22,5.518]
[1755658190462,370.78,181.32,181.23,3.08]
[1755658190957,370.78,181.32,181.23,8.5977]
[1755658191862,5.5163,181.29,181.25,3.08]
[1755658192464,5.5157,181.31,181.25,3.08]
[1755658192667,370.78,181.32,181.25,3.08]
[1755658192859,370.78,181.32,181.22,2.43663435]
[1755658192860,3.1,181.31,181.22,2.43663435]
[1755658193061,5.5167,181.28,181.22,2.43663435]
[1755658193261,5.5167,181.28,181.21,3.08]
[1755658193660,3.1,181.31,181.21,3.08]
[1755658194060,3.1,181.31,181.23,3.08]
[1755658194965,3.1,181.31,181.2,2.43663435]
[1755658195167,5.5171,181.26,181.2,7.95543435]
[1755658197767,3.1,181.28,181.16,7.62282842]
[1755658197969,3.1,181.28,181.16,3.08]
[1755658198357,5.518,181.23,181.16,8.5999]
[1755658198763,2.98,181.24,181.16,8.5999]
[1755658199267,5.5185,181.22,181.16,8.5999]
[1755658200465,5.5186,181.21,181.16,3.08]
[1755658200769,2.98,181.24,181.16,3.08]
[1755658202967,5.5192,181.19,181.16,3.08]
[1755658203465,5.5192,181.19,181.15,2.95]
[1755658203671,5.519,181.2,181.16,2.95]
[1755658203971,2.98,181.22,181.17,2.95]
[1755658204266,138.22,181.25,181.17,2.95]
[1755658204563,2.98,181.24,181.14,5.5206]
[1755658204771,2.98,181.24,181.13,5.38663435]
[1755658204970,5.41663435,181.24,181.13,2.95]
[1755658205267,2.98,181.23,181.13,2.95]
[1755658205461,2.98,181.2,181.1,2.95]
[1755658205970,2.98,181.17,181.07,2.95]
[1755658206165,138.08,181.16,181.07,8.4728]
[1755658206369,2.98,181.15,181.07,8.4728]
[1755658207466,5.5219,181.11,181.07,2.95]
[1755658207671,5.5219,181.11,181.08,2.95]
[1755658208870,5.522,181.1,181.06,2.95]
[1755658209278,5.522,181.1,181.07,2.95]
[1755658209964,5.522,181.1,181.08,2.95]
[1755658210361,5.5217,181.11,181.08,2.95]
[1755658210563,2.98,181.15,181.09,2.95]
[1755658211274,5.5208,181.14,181.1,2.95]
[1755658211669,5.5208,181.14,181.11,2.95]
[1755658212172,5.521,181.13,181.11,2.95]
[1755658212375,5.521,181.13,181.09,2.95]
[1755658212574,5.521,181.13,181.1,2.95]
[1755658212774,5.5207,181.14,181.11,2.95]
[1755658213163,137.96,181.18,181.09,2.95]
[1755658213369,2.98,181.17,181.09,2.95]
[1755658213565,5.5218,181.11,181.09,2.95]
[1755658213867,2.98,181.14,181.08,5.38663435]
[1755658214171,5.5204,181.16,181.11,2.43663435]
[1755658214473,141.0,181.21,181.14,2.95]
[1755658214674,141.0,181.21,181.12,5.5212]
[1755658214675,5.5197,181.18,181.12,5.5212]
[1755658214875,5.5197,181.18,181.15,2.95]
[1755658215072,2.98,181.21,181.16,2.95]
[1755658215469,2.98,181.19,181.15,2.95]
[1755658215975,5.5197,181.18,181.15,2.95]
[1755658216373,5.5197,181.18,181.16,2.95]
[1755658216571,5.5197,181.18,181.14,2.43663435]
[1755658216766,5.5189,181.2,181.15,2.95]
[1755658216967,5.5189,181.2,181.16,2.95]
[1755658217370,5.5189,181.2,181.14,7.95703435]
[1755658217578,5.5189,181.2,181.15,2.95]
[1755658217768,2.98,181.23,181.1,5.38663435]
[1755658217974,2.43663435,181.22,181.1,5.38663435]
[1755658218176,5.5214,181.12,181.1,2.95]
[1755658218374,2.98,181.12,181.07,5.38663435]
[1755658218576,2.98,181.12,181.07,2.95]
[1755658218972,5.5219,181.1,181.07,2.95]
[1755658219583,5.5219,181.1,181.08,2.95]
[1755658222182,2.98,181.12,181.04,197.06747864]
[1755658222785,5.5229,181.07,181.04,197.06747864]
[1755658223485,2.43663435,181.13,181.0,2.95]
[1755658223687,2.98,181.12,181.0,2.95]
[1755658224083,2.98,181.12,180.97,2.95]
[1755658224084,2.43663435,181.1,180.97,2.95]
[1755658224389,2.98,181.09,180.97,2.95]
[1755658224576,5.524,181.04,180.98,5.5254]
[1755658225390,5.524,181.04,181.0,2.95]
[1755658225878,5.5234,181.06,181.0,2.95]
[1755658226079,5.5234,181.06,181.0,8.4749]
[1755658226283,5.5245,181.02,180.98,2.95]
[1755658228091,5.5241,181.03,180.98,2.95]
[1755658228287,5.5241,181.03,180.97,2.43663435]
[1755658228591,5.5241,181.03,181.0,2.93]
[1755658229487,2.98,181.07,181.0,2.43663435]
[1755658230593,2.98,181.07,180.98,2.93]
[1755658230794,5.5248,181.01,180.98,2.93]
[1755658231684,5.525,181.0,180.98,2.93]
[1755658231888,3.04,181.05,180.98,2.93]
[1755658232086,3.04,181.09,180.98,2.93]
[1755658232391,5.524,181.04,180.98,2.93]
[1755658232591,3.04,181.09,181.0,5.36663435]
[1755658233497,3.04,181.09,181.0,2.93]
[1755658233698,3.04,181.09,180.99,2.43663435]
[1755658234295,3.04,181.09,181.02,2.43663435]
[1755658234502,3.04,181.09,181.0,2.93]
[1755658234691,5.5241,181.03,181.0,2.93]
[1755658234999,3.04,181.06,180.99,2.43663435]
[1755658235394,5.5244,181.02,180.99,2.43663435]
[1755658235794,3.04,181.06,180.99,5.36663435]
[1755658236193,5.5243,181.03,180.99,5.36663435]
[1755658236389,3.04,181.06,180.99,5.36663435]
[1755658236795,5.5243,181.03,180.99,5.36663435]
[1755658236995,5.5243,181.03,181.0,2.93]
[1755658238094,5.5243,181.03,180.99,2.43663435]
[1755658238297,3.04,181.06,180.96,5.36663435]
[1755658238698,5.5249,181.01,180.97,2.93]
[1755658238998,3.04,181.06,180.98,2.93]
[1755658239306,5.5249,181.01,180.98,2.93]
[1755658239800,5.5249,181.01,180.97,2.93]
[1755658240007,5.5249,181.01,180.98,2.93]
[1755658241299,137.98,181.1,180.99,5.36663435]
[1755658241500,3.04,181.09,180.99,5.36663435]
[1755658242398,5.5238,181.04,180.99,5.36663435]
[1755658242593,5.5238,181.04,181.01,2.93]
[1755658242797,3.04,181.09,180.99,2.43663435]
[1755658243398,3.04,181.09,180.99,5.36663435]
[1755658244710,5.5239,181.04,181.01,2.93]
[1755658244907,5.5239,181.04,181.0,2.93]
[1755658245105,5.5239,181.04,180.99,7.96163435]
[1755658245312,5.5239,181.04,181.02,2.93]
[1755658246107,5.524,181.03,181.02,2.93]
[1755658246311,3.04,181.06,180.99,2.43663435]
[1755658246907,3.04,181.06,180.98,2.93]
[1755658247214,0.03927727,181.04,181.01,0.03581836]
[1755658247408,3.07927727,181.04,181.01,0.03581836]
[1755658247610,0.03927727,181.04,181.01,0.03581836]
[1755658247917,3.04,181.03,181.01,0.03581836]
[1755658248310,5.5246,181.02,181.01,0.03581836]
[1755658248917,8.5646,181.02,181.01,0.03581836]
[1755658255818,0.03927727,181.04,181.02,2.93]
[1755658256019,0.03927727,181.04,181.01,0.03581836]
[1755658256211,0.03927727,181.04,181.03,2.93]
[1755658257019,0.03927727,181.04,181.01,2.96581836]
[1755658257819,3.07927727,181.04,181.01,0.03581836]
[1755658258212,5.5243,181.03,181.01,0.03581836]
[1755658258611,5.5243,181.03,181.01,3.00581836]
[1755658260318,5.5244,181.02,181.01,3.00581836]
[1755658260519,8.3544,181.02,181.01,0.03581836]
[1755658261510,2.83,181.01,180.91,5.5276]
[1755658261711,2.83,181.01,180.9,5.40663435]
[1755658261919,2.83,181.01,180.91,2.97]
[1755658262316,5.5263,180.96,180.93,2.97]
[1755658262622,2.83,181.01,180.93,2.97]
[1755658262824,5.5265,180.95,180.93,2.97]
[1755658263419,5.56305565,180.96,180.91,5.5275]
[1755658263618,0.03675565,180.96,180.93,2.97]
[1755658263924,0.03675565,180.96,180.95,2.97]
[1755658265225,2.83,181.05,180.95,2.97]
[1755658265525,2.83,181.05,180.96,2.43663435]
[1755658266325,2.83,181.05,180.99,2.43663435]
[1755658267019,137.82,181.07,180.99,2.43663435]
[1755658267318,2.83,181.06,180.97,2.97]
[1755658267727,5.5249,181.01,180.97,2.97]
[1755658268120,5.5244,181.02,180.96,2.43663435]
[1755658268323,5.5244,181.02,180.96,7.96283435]
[1755658268816,5.5241,181.03,181.0,2.97]
[1755658269526,2.83,181.04,180.96,9.95111065]
[1755658269715,2.83,181.04,180.96,5.40663435]
[1755658270426,2.83,181.06,180.97,2.97]
[1755658271027,5.525,181.0,180.97,2.97]
[1755658272127,2.83,181.06,180.94,4.5444763]
[1755658272325,2.83,181.06,180.93,15.47811065]
[1755658272529,2.83,181.06,180.93,9.95111065]
[1755658272722,5.5252,181.0,180.94,5.5267]
[1755658273431,5.5252,181.0,180.95,5.5265]
[1755658273623,5.5254,180.99,180.93,9.95111065]
[1755658273823,2.83,181.02,180.93,9.95111065]
[1755658274031,2.83,181.02,180.93,15.47801065]
[1755658274226,5.5255,180.99,180.93,15.47801065]
[1755658274621,2.83,181.02,180.93,9.95111065]
[1755658274833,5.5258,180.98,180.94,2.97]
[1755658275330,5.5258,180.98,180.93,12.50821065]
[1755658275331,2.83,181.02,180.95,2.97]
[1755658275533,2.83,181.06,180.96,2.43663435]
[1755658275931,140.67,181.06,180.96,2.43663435]
[1755658276132,5.5247,181.01,180.98,2.97]
[1755658276328,2.83,181.04,180.96,2.43663435]
[1755658276535,5.5244,181.02,181.0,2.97]
[1755658277230,5.5242,181.03,181.0,2.97]
[1755658279325,8.3542,181.03,181.0,2.97]
[1755658280636,5.5245,181.02,181.0,2.97]
[1755658280935,5.5245,181.02,180.98,2.97]
[1755658281335,5.5247,181.01,180.98,2.97]
[1755658281725,8.3547,181.01,180.98,2.97]
[1755658282834,5.5245,181.02,180.99,2.97]
[1755658283032,5.5245,181.02,181.0,2.97]
[1755658283837,5.5241,181.03,181.0,2.97]
[1755658284137,137.84,181.07,181.0,2.97]
[1755658284138,140.67,181.07,181.0,2.97]
[1755658284430,2.83,181.06,181.03,2.97]
[1755658284938,8.3532,181.06,181.03,2.97]
[1755658285328,140.65,181.1,181.02,2.43663435]
[1755658285531,371.26,181.12,181.05,2.43663435]
[1755658285832,371.26,181.12,181.08,2.43663435]
[1755658286038,371.26,181.12,181.09,2.97]
[1755658286238,2.83,181.17,181.09,2.97]
[1755658286438,2.83,181.17,181.05,4.5444763]
[1755658286439,137.82,181.16,181.12,2.97]
[1755658286936,140.65,181.16,181.11,2.43663435]
[1755658287236,140.65,181.16,181.11,5.40663435]
[1755658287633,5.5207,181.15,181.11,5.40663435]
[1755658287830,5.5207,181.15,181.12,2.97]
[1755658288236,5.5202,181.16,181.13,2.97]
[1755658288432,2.87,181.16,181.11,5.40663435]
[1755658288739,2.87,181.16,181.12,2.97]
[1755658288740,5.5205,181.15,181.12,2.97]
[1755658288939,137.82,181.18,181.13,2.97]
[1755658289237,2.87,181.17,181.13,2.97]
[1755658289439,8.39,181.17,181.13,2.97]
[1755658290435,2.87,181.17,181.13,2.97]
[1755658290640,137.82,181.19,181.12,2.97]
[1755658290830,2.87,181.18,181.12,2.97]
[1755658291034,5.5203,181.16,181.12,2.97]
[1755658291334,8.3903,181.16,181.12,2.97]
[1755658291535,2.87,181.18,181.07,2.97]
[1755658291738,2.87,181.18,181.08,2.43663435]
[1755658292239,5.5216,181.12,181.09,2.97]
[1755658293232,5.5217,181.11,181.08,2.43663435]
[1755658293931,5.5217,181.11,181.08,5.40663435]
[1755658294538,8.3914,181.12,181.08,5.40663435]
[1755658294733,5.5214,181.12,181.08,2.43663435]
[1755658294942,5.5214,181.12,181.09,2.97]
[1755658295745,5.5211,181.13,181.09,2.97]
[1755658295945,2.87,181.19,181.11,2.97]
[1755658296133,2.87,181.19,181.11,5.40663435]
[1755658296134,137.76,181.18,181.11,5.40663435]
[1755658296442,5.5202,181.16,181.13,2.97]
[1755658297240,8.3902,181.16,181.11,5.40663435]
[1755658298146,8.3902,181.16,181.09,5.522]
[1755658298147,2.87,181.15,181.09,2.43663435]
[1755658298746,8.3909,181.14,181.09,5.40663435]
[1755658299942,137.76,181.18,181.09,10.92883435]
[1755658299943,8.3904,181.15,181.09,10.92883435]
[1755658300340,2.87,181.15,181.09,5.40663435]
[1755658300639,5.5207,181.14,181.1,2.97]
[1755658300836,5.5207,181.14,181.11,2.97]
[1755658302242,8.3907,181.14,181.1,2.97]
[1755658303547,5.521,181.13,181.1,2.97]
[1755658304651,8.3908,181.14,181.1,2.97]
[1755658305546,5.521,181.13,181.1,2.97]
[1755658305954,5.521,181.13,181.1,3.00618546]
[1755658306953,8.391,181.13,181.1,3.00618546]
[1755658307349,2.87,181.13,181.1,0.03618546]
[1755658307550,2.87,181.12,181.1,0.03618546]
[1755658308557,8.3914,181.12,181.1,0.03618546]
[1755658310654,5.521,181.13,181.1,0.03618546]
[1755658310854,5.521,181.13,181.1,3.00618546]
[1755658311550,8.42799683,181.14,181.1,3.00618546]
[1755658311956,8.42799683,181.14,181.1,0.03618546]
[1755658312154,8.42799683,181.14,181.1,3.00618546]
[1755658314662,8.3911,181.13,181.1,3.00618546]
[1755658315060,8.3911,181.13,181.1,0.03618546]
[1755658315763,5.5213,181.12,181.1,0.03618546]
[1755658315959,2.87,181.13,181.1,0.03618546]
[1755658316462,5.5216,181.11,181.1,0.03618546]
[1755658316963,2.87,181.13,181.1,0.03618546]
[1755658317658,0.03719683,181.14,181.11,2.43663435]
[1755658318059,5.5189,181.2,181.13,5.521]
[1755658318256,5.5189,181.2,181.14,2.43663435]
[1755658318869,5.5186,181.21,181.14,7.95733435]
[1755658319366,5.5186,181.21,181.16,0.04110384]
[1755658321664,508.92,181.22,181.16,0.04110384]
[1755658322165,5.5188,181.21,181.16,0.04110384]
[1755658322367,137.66,181.2,181.16,2.47773819]
[1755658322871,371.04,181.32,181.19,2.43663435]
[1755658323167,137.66,181.31,181.19,2.43663435]
[1755658323469,5.5171,181.26,181.19,7.95573435]
[1755658323670,137.66,181.27,181.23,0.04136767]
[1755658323867,5.5177,181.24,181.23,0.04136767]
[1755658324171,143.1577,181.24,181.23,0.04136767]
[1755658325262,143.1577,181.24,181.23,6.767e-05]
[1755658325464,5.5202,181.16,181.1,2.43663435]
[1755658326268,5.5205,181.15,181.1,2.43663435]
[1755658326471,137.64,181.19,181.1,2.43663435]
[1755658327868,370.96,181.27,181.13,2.43663435]
[1755658327869,2.43663435,181.26,181.13,2.43663435]
[1755658328064,5.5191,181.2,181.16,2.43663435]
[1755658328470,5.5187,181.21,181.16,2.43663435]
[1755658329069,5.5187,181.21,181.08,2.43663435]
[1755658329070,370.96,181.27,181.19,2.43663435]
[1755658329963,370.96,181.27,181.22,2.43663435]
[1755658330168,508.58,181.27,181.22,2.43663435]
[1755658330367,514.097,181.27,181.22,2.43663435]
[1755658330871,508.58,181.27,181.19,2.43663435]
[1755658331376,5.5189,181.2,181.16,2.43663435]
[1755658331578,508.58,181.27,181.16,2.43663435]
[1755658332572,508.58,181.27,181.09,6.05710456]
[1755658332573,2.43663435,181.26,181.13,2.43663435]
[1755658333970,2.43663435,181.26,181.13,7.95763435]
[1755658334375,508.58,181.27,181.13,5.521]
[1755658335674,508.58,181.27,181.12,5.5212]
[1755658336484,5.5199,181.17,181.12,5.5212]
[1755658336780,137.6,181.19,181.09,4.5444763]
[1755658336972,20.35110665,181.26,181.09,4.5444763]
[1755658336973,137.6,181.18,181.09,4.5444763]
[1755658337282,137.6,181.17,181.08,4.5444763]
[1755658337488,137.6,181.16,181.09,4.5444763]
[1755658337685,370.96,181.27,181.11,3.79110665]
[1755658337881,137.6,181.26,181.12,10.0657763]
[1755658338080,137.6,181.26,181.09,4.5444763]
[1755658338482,154.16,181.26,181.09,5.5222]
[1755658338682,154.16,181.26,181.07,4.5444763]
[1755658338983,154.16,181.26,181.08,5.5223]
[1755658339185,160.34828663,181.26,181.08,5.5223]
[1755658339583,160.34828663,181.26,181.09,5.5222]
[1755658339788,20.35110665,181.23,181.06,220.09624457]
[1755658339980,20.35110665,181.23,181.06,215.55176827]
[1755658340182,20.35110665,181.23,181.07,5.5226]
[1755658341382,20.35110665,181.23,181.06,10.0675763]
[1755658341586,26.53939328,181.23,181.03,4.5444763]
[1755658341786,16.56,181.21,181.03,4.5444763]
[1755658342091,137.58,181.2,181.05,5.5234]
[1755658342888,137.58,181.2,181.04,4.5444763]
[1755658343085,137.58,181.2,181.05,4.5444763]
[1755658343291,16.56,181.24,181.11,5.5216]
[1755658343494,374.75110665,181.27,181.08,4.5444763]
[1755658343495,137.58,181.23,181.08,4.5444763]
[1755658343789,137.58,181.23,181.13,5.521]
[1755658344485,137.58,181.23,181.14,5.5206]
[1755658345190,370.96,181.27,181.14,5.5206]
[1755658345389,137.6,181.26,181.15,5.5202]
[1755658345691,5.5189,181.2,181.15,5.5202]
[1755658345883,137.6,181.26,181.14,5.5206]
[1755658346282,137.6,181.26,181.1,8.33558295]
[1755658346480,137.6,181.26,181.12,4.5444763]
[1755658346688,137.6,181.26,181.15,5.5203]
[1755658346885,137.6,181.26,181.14,3.79110665]
[1755658347292,137.6,181.26,181.11,4.5444763]
[1755658347587,137.6,181.26,181.1,8.33558295]
[1755658347787,137.6,181.26,181.1,3.79110665]
[1755658347990,137.6,181.26,181.1,9.31280665]
[1755658348382,5.5203,181.16,181.11,5.5216]
[1755658348584,137.6,181.18,181.1,203.3123772]
[1755658349395,5.5207,181.14,181.1,203.3123772]
[1755658349596,137.6,181.18,181.1,199.52127055]
[1755658349996,5.5223,181.09,181.03,4.5444763]
[1755658350884,3.79110665,181.21,181.04,4.5444763]
[1755658351086,137.58,181.2,181.06,8.33558295]
[1755658351388,137.58,181.19,181.08,4.5444763]
[1755658351788,16.56,181.24,181.06,8.33558295]
[1755658352000,154.14,181.23,181.06,8.33558295]
[1755658352390,5.5212,181.13,181.07,5.5228]
[1755658352796,137.58,181.16,181.07,4.5444763]
[1755658352997,143.1002,181.16,181.1,5.5219]
[1755658353698,137.58,181.16,181.11,5.5216]
[1755658353894,374.75110665,181.27,181.1,8.33558295]
[1755658354201,5.5197,181.18,181.12,5.5213]
[1755658354400,137.6,181.26,181.11,4.5444763]
[1755658354796,137.6,181.26,181.1,8.33558295]
[1755658354996,5.5203,181.16,181.1,13.85728295]
[1755658355394,137.6,181.26,181.1,8.33558295]
[1755658355596,5.5205,181.15,181.1,8.33558295]
[1755658355798,137.6,181.19,181.1,3.79110665]
[1755658356490,5.5202,181.16,181.1,9.31280665]
[1755658357194,5.5202,181.16,181.11,5.5216]
[1755658358098,5.5202,181.16,181.1,9.31290665]
[1755658358300,137.6,181.19,181.09,4.5444763]
[1755658358494,137.6,181.19,181.08,4.5444763]
[1755658358695,137.6,181.19,181.08,10.0669763]
[1755658358993,5.521,181.14,181.08,10.0669763]
[1755658360900,5.5211,181.13,181.08,10.0669763]
[1755658361302,137.6,181.19,181.06,209.90394096]
[1755658361501,137.6,181.19,181.06,8.33558295]
[1755658361800,141.39110665,181.19,181.06,4.5444763]
[1755658362000,5.5225,181.09,181.05,4.5444763]
[1755658363501,5.5225,181.09,181.04,4.5444763]
[1755658363900,137.6,181.19,181.04,4.5444763]
[1755658364102,137.6,181.19,181.05,4.5444763]
[1755658364606,137.6,181.18,181.06,5.5231]
[1755658364903,137.6,181.18,181.05,4.5444763]
[1755658365098,137.6,181.18,181.05,10.0678763]
[1755658365298,137.6,181.18,181.05,4.5444763]
[1755658365499,5.5219,181.1,181.05,4.5444763]
[1755658365806,137.6,181.18,181.04,4.5444763]
[1755658366394,5.5223,181.09,181.04,4.5444763]
[1755658366595,137.6,181.16,181.04,4.5444763]
[1755658367307,5.5222,181.1,181.05,5.5234]
[1755658367507,137.6,181.16,181.04,4.5444763]
[1755658367709,16.56,181.21,181.04,4.5444763]
[1755658367912,137.6,181.2,181.04,4.5444763]
[1755658368110,5.5221,181.1,181.05,5.5233]
[1755658368504,5.5221,181.1,181.04,4.5444763]
[1755658368804,11.0368,181.22,181.05,4.5444763]
[1755658369007,137.6,181.21,181.07,4.5444763]
[1755658369205,137.6,181.21,181.06,3.79110665]
[1755658369403,5.5218,181.11,181.06,9.31430665]
[1755658369804,137.6,181.21,181.06,9.31430665]
[1755658370409,137.6,181.21,181.06,5.5232]
[1755658370601,137.6,181.21,181.06,4.5444763]
[1755658371211,137.6,181.21,181.08,5.5225]
[1755658371610,137.6,181.21,181.06,8.33558295]
[1755658372310,5.5213,181.13,181.08,5.5225]
[1755658373408,5.5213,181.12,181.07,5.5228]
[1755658373702,398.5968,181.22,181.07,4.5444763]
[1755658373906,371.0,181.22,181.09,4.5444763]
[1755658374105,5.5203,181.16,181.11,5.5215]
[1755658376213,5.5204,181.15,181.1,10.0662763]
[1755658376509,137.6,181.22,181.1,10.0662763]
[1755658376710,137.6,181.22,181.1,4.5444763]
[1755658377016,137.6,181.22,181.09,4.5444763]
[1755658377815,137.6,181.22,181.1,4.5444763]
[1755658378410,5.5202,181.16,181.11,5.5214]
[1755658378614,5.5202,181.16,181.13,2.92]
[1755658378816,0.24,181.2,181.14,2.92]
[1755658379009,5.5199,181.17,181.15,2.92]
[1755658379315,0.24,181.19,181.12,8.4411]
[1755658379611,5.56049611,181.17,181.14,2.92]
[1755658380014,0.04039611,181.17,181.14,2.92]
[1755658380206,5.56019611,181.17,181.13,2.92]
[1755658380406,5.56019611,181.17,181.14,2.92]
[1755658380605,5.56019611,181.17,181.15,2.92]
[1755658381416,0.04039611,181.17,181.16,2.92]
[1755658382717,0.04039611,181.17,181.14,2.92]
[1755658382920,0.04039611,181.17,181.15,2.92]
[1755658383123,0.04039611,181.17,181.16,2.92]
[1755658385015,137.58,181.25,181.16,2.92]
[1755658385416,0.24,181.26,181.18,2.92]
[1755658385812,0.24,181.26,181.19,4.5444763]
[1755658386011,0.24,181.26,181.22,2.92]
[1755658387921,5.5174,181.25,181.22,2.92]
[1755658388312,5.5174,181.25,181.21,0.04026896]
[1755658388512,5.5174,181.25,181.21,2.96026896]
[1755658388714,5.5174,181.25,181.21,0.04026896]
[1755658388915,0.24,181.3,181.23,2.92]
[1755658389719,0.24,181.29,181.25,0.03868557]
[1755658390824,5.5167,181.28,181.25,0.03868557]
[1755658392022,5.5168,181.27,181.25,0.03868557]
[1755658393122,5.5165,181.28,181.25,0.03868557]
[1755658393325,0.24,181.29,181.25,0.03868557]
[1755658393621,0.24,181.28,181.25,0.03868557]
[1755658393825,5.757,181.27,181.25,0.03868557]
[1755658395128,5.5171,181.26,181.25,0.03868557]
[1755658395332,5.7571,181.26,181.25,0.03868557]
[1755658397920,137.52,181.3,181.25,0.03868557]
[1755658398119,0.24,181.26,181.25,0.03868557]
[1755658400217,0.24,181.26,181.16,2.92]
[1755658401630,0.24,181.26,181.17,5.5198]
[1755658402229,0.24,181.26,181.16,8.44]
[1755658402430,2.43525521,181.25,181.12,5.35525521]
[1755658402630,0.21,181.24,181.12,5.35525521]
[1755658402827,0.21,181.22,181.12,5.35525521]
[1755658404132,0.21,181.21,181.12,2.92]
[1755658405526,0.21,181.21,181.12,8.4413]
[1755658406526,5.5203,181.16,181.13,2.92]
[1755658406726,0.21,181.21,181.1,193.7983014]
[1755658407231,5.5216,181.12,181.11,2.92]
[1755658408735,0.2,181.21,181.11,2.92]
[1755658409432,0.2,181.21,181.11,3.11]
[1755658409933,5.5201,181.17,181.12,5.5212]
[1755658410130,5.5201,181.17,181.1,193.7983014]
[1755658410331,137.66,181.24,181.14,3.11]
[1755658411232,5.5195,181.18,181.15,3.11]
[1755658411535,0.2,181.23,181.16,3.11]
[1755658411736,5.5197,181.18,181.16,3.11]
[1755658412437,5.5198,181.17,181.16,3.11]
[1755658415538,5.5195,181.18,181.14,3.11]
[1755658415838,5.5195,181.18,181.16,3.11]
[1755658416035,5.5195,181.18,181.17,3.11]
[1755658416240,20.35325707,181.29,181.17,3.79325707]
[1755658416241,0.22,181.29,181.17,3.79325707]
[1755658416441,0.22,181.29,181.18,3.11]
[1755658417737,0.22,181.29,181.14,4.55556707]
[1755658418041,0.22,181.29,181.15,3.11]
[1755658418042,0.22,181.28,181.15,3.11]
[1755658418940,0.22,181.26,181.11,188.1465537]
[1755658419144,0.22,181.26,181.11,186.70098663]
[1755658419434,5.5207,181.14,181.11,192.22248663]
[1755658419635,5.5207,181.14,181.12,3.11]
[1755658420237,5.521,181.13,181.12,3.11]
[1755658420540,0.22,181.19,181.08,3.11]
[1755658422234,137.46,181.21,181.07,3.11]
[1755658422235,0.22,181.2,181.07,3.11]